[Event "48th Ciutat de Badalona Open 2024"]
[Site "Badalona"]
[Date "2024.08.02"]
[Round "1.1"]
[White "Diaz Perez, Michel Alejandro"]
[Black "Midilesh MS"]
[Result "1-0"]
[ECO "E12"]
[WhiteElo "2487"]
[BlackElo "2052"]
[Annotator "RC"]
[PlyCount "115"]
[EventDate "2024.07.29"]
[EventCountry "ESP"]
[SourceTitle "playchess.com"]
[Source "ChessBase"]
[SourceQuality "1"]
[TimeControl "5400+30"]

1. d4 {[%emt 1:31:00]} Nf6 {[%emt 0:00:27]} 2. c4 {[%emt 0:00:00]} e6 {[%emt 1:31:03]} 3. a3 {[%emt 0:01:00]} b6 {[%emt 0:00:00]} 4. Nc3 {[%emt 0:00:00]} d5 {[%emt 0:00:00]} 5. Bg5 {[%emt 0:00:00]} Be7 {[%emt 0:00:00]} 6. Nf3 {[%emt 0:00:00]} O-O {[%emt 0:00:00]} 7. Bxf6 {[%emt 0:00:00]} Bxf6 {[%emt 0:00:00]} 8. cxd5 {[%emt 0:00:00]} exd5 {[%emt 0:00:00]} 9. g3 {[%emt 0:00:00]} Re8 {[%emt 0:00:00]} 10. Bg2 {[%emt 0:00:00]} c6 {[%emt 0:00:00]} 11. O-O {[%emt 0:00:00]} Bf5 {[%emt 0:00:00]} 12. Qa4 {[%emt 0:00:00]} b5 {[%emt 0:00:00]} 13. Qd1 {[%emt 0:00:00]} Nd7 {[%emt 0:00:00]} 14. e3 {[%emt 0:00:00]} Nb6 {[%emt 0:00:00]} 15. Re1 {[%emt 0:00:00]} Nc4 {[%emt 0:00:00]} 16. Qc1 {[%emt 0:00:00]} a5 {[%emt 0:00:00]} 17. b3 {[%emt 0:00:00]} Nb6 {[%emt 0:00:02]} 18. a4 {[%emt 0:00:00]} b4 {[%emt 0:00:34]} 19. Ne2 {[%emt 0:00:00]} Rc8 {[%emt 0:01:56]} 20. Ra2 {[%emt 0:00:00]} Nd7 {[%emt 0:05:37]} 21. Qd1 {[%emt 0:00:00]} g5 {[%emt 0:00:49]} 22. h3 {[%emt 0:00:00]} Be4 {[%emt 0:00:31]} 23. Nd2 {[%emt 0:00:00]} Bxg2 {[%emt 0:00:29]} 24. Kxg2 {[%emt 0:00:00]} c5 {[%emt 0:00:30]} 25. dxc5 {[%emt 0:00:00]} Nxc5 {[%emt 0:00:26]} 26. Nf3 {[%emt 0:00:00]} Ne4 {[%emt 0:00:34]} 27. Rc2 {[%emt 0:00:00]} Qd7 {[%emt 0:00:30]} 28. Rxc8 {[%emt 0:00:00]} Rxc8 {[%emt 0:00:12]} 29. Qd3 {[%emt 0:00:00]} Qxh3+ {[%emt 0:00:41]} 30. Kxh3 {[%emt 0:00:00]} Nxf2+ {[%emt 0:00:06]} 31. Kg2 {[%emt 0:00:00]} Nxd3 {[%emt 0:00:06]} 32. Rd1 {[%emt 0:00:00]} Rc2 {[%emt 0:01:24]} 33. Kf1 {[%emt 0:00:00]} Nc5 {[%emt 0:00:31]} 34. Ne1 {[%emt 0:00:00]} Rb2 {[%emt 0:00:31]} 35. Nd3 {[%emt 0:00:00]} Nxd3 {[%emt 0:00:12]} 36. Rxd3 {[%emt 0:00:00]} Bc3 {[%emt 0:00:48]} 37. Rxd5 {[%emt 0:00:00]} Rxb3 {[%emt 0:00:08]} 38. Rxg5+ {[%emt 0:00:00]} Kf8 {[%emt 0:00:50]} 39. Rxa5 {[%emt 0:00:00]} Rb1+ {[%emt 0:00:32]} 40. Kg2 {[%emt 0:00:00]} Bd2 {[%emt 0:00:26]} 41. Nd4 {[%emt 0:00:00]} b3 {[%emt 0:00:31]} 42. Rb5 {[%emt 0:00:00]} b2 {[%emt 0:00:19]} 43. Nf5 {[%emt 0:00:00]} f6 {[%emt 0:00:41]} 44. Rb8+ {[%emt 0:00:23]} Kf7 {[%emt 0:00:04]} 45. Rb7+ {[%emt 0:00:03]} Kf8 {[%emt 0:00:49]} 46. Rb8+ {[%emt 0:12:58]} Kf7 {[%emt 0:00:05]} 47. Rb7+ {[%emt 0:00:04]} Kf8 {[%emt 0:00:57]} 48. Rb8+ {[%emt 0:05:53]} Kf7 {[%emt 0:00:06]} 49. Rb7+ {[%emt 0:00:03]} Ke6 {[%emt 0:00:54]} 50. e4 {[%emt 0:00:42]} Bb4 {[%emt 0:00:37]} 51. Rxb4 {[%emt 0:00:04]} Re1 {[%emt 0:00:15]} 52. Nd4+ {[%emt 0:01:11]} Kd6 {[%emt 0:00:35]} 53. Nb5+ {[%emt 0:00:16]} Kc5 {[%emt 0:00:10]} 54. Rxb2 {[%emt 0:00:02]} Rxe4 {[%emt 0:00:06]} 55. Nc3 {[%emt 0:00:33]} Re3 {[%emt 0:00:17]} 56. Rb5+ {[%emt 0:00:05]} Kd6 {[%emt 0:01:14]} 57. Nd5 {[%emt 0:00:17]} Ra3 {[%emt 0:00:26]} 58. Nxf6 {[%emt 0:00:46]} 1-0

[Event "48th Ciutat de Badalona Open 2024"]
[Site "Badalona"]
[Date "2024.08.02"]
[Round "1.2"]
[White "Herman Gamazo, Isaac"]
[Black "Berdayes Ason, Dylan Isidro"]
[Result "0-1"]
[ECO "B46"]
[WhiteElo "2051"]
[BlackElo "2476"]
[Annotator "RC"]
[PlyCount "62"]
[EventDate "2024.07.29"]
[EventCountry "ESP"]
[SourceTitle "playchess.com"]
[Source "ChessBase"]
[SourceQuality "1"]
[TimeControl "5400+30"]

1. e4 {[%emt 1:31:00]} c5 {[%emt 0:02:28]} 2. Nf3 {[%emt 0:00:00]} e6 {[%emt 0:00:14]} 3. d4 {[%emt 0:00:00]} cxd4 {[%emt 0:00:04]} 4. Nxd4 {[%emt 0:00:00]} Nc6 {[%emt 0:00:02]} 5. Nc3 {[%emt 0:00:00]} a6 {[%emt 0:00:54]} 6. Nxc6 {[%emt 0:00:00]} bxc6 {[%emt 0:00:03]} 7. Bd3 {[%emt 0:00:00]} Qc7 {[%emt 0:02:18]} 8. O-O {[%emt 0:00:00]} Nf6 {[%emt 0:00:02]} 9. f4 {[%emt 0:00:00]} d5 {[%emt 0:01:00]} 10. Be3 {[%emt 0:00:00]} Be7 {[%emt 0:05:02]} 11. Bd4 {[%emt 0:00:00]} Bb7 {[%emt 0:06:55]} 12. Qe2 {[%emt 0:00:00]} g6 {[%emt 0:08:58]} 13. Rae1 {[%emt 0:00:00]} Rg8 {[%emt 0:24:16]} 14. exd5 {[%emt 0:00:00]} cxd5 {[%emt 0:00:52]} 15. f5 {[%emt 0:00:00]} gxf5 {[%emt 0:16:54]} 16. Bxf5 {[%emt 0:00:00]} exf5 {[%emt 0:04:24]} 17. Bxf6 {[%emt 0:00:00]} Qb6+ {[%emt 0:00:04]} 18. Kh1 {[%emt 0:00:00]} Qxf6 {[%emt 0:00:06]} 19. Rxf5 {[%emt 0:00:00]} Qd6 {[%emt 0:00:38]} 20. Re5 {[%emt 0:00:00]} O-O-O {[%emt 0:00:29]} 21. Rxe7 {[%emt 0:00:00]} d4 {[%emt 0:00:56]} 22. Rxb7 {[%emt 0:00:00]} Kxb7 {[%emt 0:00:33]} 23. Ne4 {[%emt 0:00:00]} Qc6 {[%emt 0:00:28]} 24. b4 {[%emt 0:00:00]} Ka8 {[%emt 0:01:05]} 25. Qf3 {[%emt 0:00:00]} Rge8 {[%emt 0:00:19]} 26. b5 {[%emt 0:00:00]} axb5 {[%emt 0:04:55]} 27. Qa3+ {[%emt 0:00:00]} Kb8 {[%emt 0:00:08]} 28. Qg3+ {[%emt 0:00:00]} Ka7 {[%emt 0:01:46]} 29. Qf3 {[%emt 0:00:00]} Rd7 {[%emt 0:02:16]} 30. a4 {[%emt 0:00:00]} b4 {[%emt 0:00:55]} 31. Qf5 {[%emt 0:00:00]} Qd5 {[%emt 0:16:56]} 0-1

[Event "48th Ciutat de Badalona Open 2024"]
[Site "Badalona"]
[Date "2024.08.02"]
[Round "1.3"]
[White "Vitier Vazquez, Cristian"]
[Black "Santos Izquierdo, Daniel"]
[Result "1-0"]
[ECO "E62"]
[WhiteElo "2357"]
[BlackElo "2036"]
[Annotator "RC"]
[PlyCount "53"]
[EventDate "2024.07.29"]
[EventCountry "ESP"]
[SourceTitle "playchess.com"]
[Source "ChessBase"]
[SourceQuality "1"]
[TimeControl "5400+30"]

1. d4 {[%emt 0:02:50]} d6 {[%emt 1:31:00]} 2. c4 {[%emt 0:00:17]} Nf6 {[%emt 0:00:00]} 3. Nf3 {[%emt 0:00:07]} g6 {[%emt 0:00:00]} 4. g3 {[%emt 0:00:57]} Bg7 {[%emt 0:00:00]} 5. Bg2 {[%emt 0:00:07]} O-O {[%emt 0:00:00]} 6. Nc3 {[%emt 0:00:05]} Bg4 {[%emt 0:00:00]} 7. h3 {[%emt 0:00:14]} Bxf3 {[%emt 0:00:00]} 8. Bxf3 {[%emt 0:00:03]} Nc6 {[%emt 0:00:00]} 9. e3 {[%emt 0:01:06]} e5 {[%emt 0:00:00]} 10. d5 {[%emt 0:00:12]} Ne7 {[%emt 0:00:00]} 11. e4 {[%emt 0:00:49]} a5 {[%emt 0:00:00]} 12. h4 {[%emt 0:01:46]} c6 {[%emt 0:00:00]} 13. Be3 {[%emt 0:01:43]} cxd5 {[%emt 0:00:00]} 14. cxd5 {[%emt 0:00:08]} Nd7 {[%emt 0:00:00]} 15. h5 {[%emt 0:03:29]} Nc5 {[%emt 0:00:00]} 16. Qd2 {[%emt 0:14:15]} f5 {[%emt 0:00:00]} 17. hxg6 {[%emt 0:01:54]} hxg6 {[%emt 0:00:00]} 18. Bxc5 {[%emt 0:01:21]} dxc5 {[%emt 0:00:00]} 19. d6 {[%emt 0:00:11]} Nc6 {[%emt 0:00:00]} 20. exf5 {[%emt 0:08:44]} Rxf5 {[%emt 0:00:00]} 21. Bd5+ {[%emt 0:00:36]} Kf8 {[%emt 0:00:00]} 22. Bxc6 {[%emt 0:00:10]} bxc6 {[%emt 0:00:00]} 23. Ne4 {[%emt 0:02:04]} Qb6 {[%emt 0:00:00]} 24. O-O-O {[%emt 0:02:52]} c4 {[%emt 0:00:00]} 25. d7 {[%emt 0:02:22]} Rd8 {[%emt 0:00:00]} 26. Qd6+ {[%emt 0:05:03]} Kf7 {[%emt 0:00:00]} 27. g4 {[%emt 0:01:33]} 1-0

[Event "48th Ciutat de Badalona Open 2024"]
[Site "Badalona"]
[Date "2024.08.02"]
[Round "1.4"]
[White "Gardela Batlle, Jordi"]
[Black "Utsab Chatterjee"]
[Result "0-1"]
[ECO "D36"]
[WhiteElo "2027"]
[BlackElo "2289"]
[Annotator "ChessBase"]
[PlyCount "86"]
[EventDate "2024.07.29"]
[EventCountry "ESP"]
[SourceTitle "playchess.com"]
[Source "ChessBase"]
[SourceQuality "1"]
[TimeControl "5400+30"]

1. d4 {[%emt 0:01:16]} d5 {[%emt 0:00:25]} 2. c4 {[%emt 0:00:07]} e6 {[%emt 0:00:05]} 3. cxd5 {[%emt 0:00:20]} exd5 {[%emt 0:00:02]} 4. Nc3 {[%emt 0:00:12]} Nf6 {[%emt 0:00:14]} 5. Bg5 {[%emt 0:00:13]} Be7 {[%emt 0:00:06]} 6. e3 {[%emt 0:00:32]} c6 {[%emt 0:00:05]} 7. Bd3 {[%emt 0:00:18]} Nbd7 {[%emt 0:00:07]} 8. Nge2 {[%emt 0:01:52]} O-O {[%emt 0:00:07]} 9. O-O {[%emt 0:00:18]} Re8 {[%emt 0:00:02]} 10. Qc2 {[%emt 0:01:01]} Nf8 {[%emt 0:00:07]} 11. Rab1 {[%emt 0:04:28]} g6 {[%emt 0:00:42]} 12. b4 {[%emt 0:26:05]} a6 {[%emt 0:01:40]} 13. a4 {[%emt 0:05:34]} Ne6 {[%emt 0:00:05]} 14. Bh4 {[%emt 0:03:42]} Nh5 {[%emt 0:14:33]} 15. Bxe7 {[%emt 0:02:14]} Rxe7 {[%emt 0:00:01]} 16. b5 {[%emt 0:04:08]} axb5 {[%emt 0:00:05]} 17. axb5 {[%emt 0:00:05]} c5 {[%emt 0:00:04]} 18. dxc5 {[%emt 0:05:23]} Nxc5 {[%emt 0:00:02]} 19. Nd4 {[%emt 0:00:47]} Ng7 {[%emt 0:01:31]} 20. Ra1 {[%emt 0:07:18]} Rb8 {[%emt 0:00:01]} 21. Rfd1 {[%emt 0:07:03]} Bg4 {[%emt 0:02:47]} 22. Be2 {[%emt 0:00:52]} Bxe2 {[%emt 0:00:51]} 23. Ndxe2 {[%emt 0:03:19]} Rd7 {[%emt 0:00:05]} 24. Qa2 {[%emt 0:25:23]} Nge6 {[%emt 0:01:58]} 25. Nxd5 {[%emt 0:00:00]} Nc7 {[%emt 0:01:18]} 26. Ndc3 {[%emt 0:00:00]} Nxb5 {[%emt 0:02:00]} 27. Rxd7 {[%emt 0:00:00]} Qxd7 {[%emt 0:00:01]} 28. Nxb5 {[%emt 0:00:00]} Qxb5 {[%emt 0:00:01]} 29. Nd4 {[%emt 0:00:00]} Qd7 {[%emt 0:01:00]} 30. Qa7 {[%emt 0:00:00]} Rc8 {[%emt 0:01:35]} 31. Qb6 {[%emt 0:00:00]} Ne4 {[%emt 0:02:25]} 32. g3 {[%emt 0:00:00]} Qd5 {[%emt 0:01:28]} 33. Qb5 {[%emt 0:00:00]} Qxb5 {[%emt 0:08:23]} 34. Nxb5 {[%emt 0:00:00]} Rc2 {[%emt 0:00:01]} 35. Rf1 {[%emt 0:00:00]} Rb2 {[%emt 0:00:44]} 36. Nd4 {[%emt 0:00:00]} b5 {[%emt 0:01:22]} 37. f3 {[%emt 0:00:00]} Nd2 {[%emt 0:00:31]} 38. Rf2 {[%emt 0:00:23]} Rb1+ {[%emt 0:00:04]} 39. Kg2 {[%emt 0:00:09]} Nc4 {[%emt 0:00:01]} 40. e4 {[%emt 0:02:40]} b4 {[%emt 0:00:01]} 41. Ra2 {[%emt 0:02:18]} b3 {[%emt 0:01:02]} 42. Ra4 {[%emt 0:00:26]} Ne3+ {[%emt 0:02:41]} 43. Kh3 {[%emt 0:01:05]} b2 {[%emt 0:00:56]} 0-1

[Event "48th Ciutat de Badalona Open 2024"]
[Site "Badalona"]
[Date "2024.08.02"]
[Round "1.5"]
[White "Pawar, Harshit"]
[Black "Sudarshan Bhat"]
[Result "1-0"]
[ECO "B23"]
[WhiteElo "2284"]
[BlackElo "2025"]
[Annotator "ChessBase"]
[PlyCount "71"]
[EventDate "2024.07.29"]
[EventCountry "ESP"]
[SourceTitle "playchess.com"]
[Source "ChessBase"]
[SourceQuality "1"]
[TimeControl "5400+30"]

1. e4 {[%emt 1:31:00]} c5 {[%emt 0:03:53]} 2. Nc3 {[%emt 0:00:30]} Nc6 {[%emt 0:00:36]} 3. Bb5 {[%emt 0:00:30]} Nd4 {[%emt 0:00:33]} 4. Bc4 {[%emt 0:00:00]} e6 {[%emt 0:00:41]} 5. Nge2 {[%emt 0:00:00]} Nf6 {[%emt 0:00:19]} 6. O-O {[%emt 0:00:00]} a6 {[%emt 0:00:59]} 7. a4 {[%emt 0:00:00]} Qc7 {[%emt 0:01:29]} 8. d3 {[%emt 0:00:00]} b6 {[%emt 0:01:00]} 9. Ba2 {[%emt 0:00:00]} Nc6 {[%emt 0:02:24]} 10. f4 {[%emt 0:00:00]} Bb7 {[%emt 0:00:51]} 11. Ng3 {[%emt 0:00:00]} h5 {[%emt 0:02:07]} 12. Nh1 {[%emt 0:00:00]} Nb4 {[%emt 0:02:53]} 13. Bb1 {[%emt 0:00:00]} O-O-O {[%emt 0:05:54]} 14. Nf2 {[%emt 0:00:00]} d5 {[%emt 0:01:25]} 15. e5 {[%emt 0:00:00]} d4 {[%emt 0:07:43]} 16. Na2 {[%emt 0:00:00]} Qc6 {[%emt 0:25:36]} 17. Qf3 {[%emt 0:00:00]} Qxa4 {[%emt 0:01:37]} 18. Qh3 {[%emt 0:00:00]} Nxc2 {[%emt 0:16:34]} 19. Bxc2 {[%emt 0:00:00]} Qxc2 {[%emt 0:00:45]} 20. exf6 {[%emt 0:00:00]} gxf6 {[%emt 0:00:13]} 21. b4 {[%emt 0:00:00]} Rg8 {[%emt 0:07:23]} 22. g3 {[%emt 0:00:00]} c4 {[%emt 0:09:04]} 23. Qxh5 {[%emt 0:00:00]} cxd3 {[%emt 0:04:56]} 24. Ba3 {[%emt 0:00:00]} Kb8 {[%emt 0:00:38]} 25. Rfd1 {[%emt 0:00:00]} Qc6 {[%emt 0:01:12]} 26. Qh3 {[%emt 0:00:00]} Rh8 {[%emt 0:00:59]} 27. Qf1 {[%emt 0:00:00]} Rd5 {[%emt 0:01:36]} 28. b5 {[%emt 0:00:00]} Rxb5 {[%emt 0:00:16]} 29. Bxf8 {[%emt 0:00:00]} Rb2 {[%emt 0:00:33]} 30. Nb4 {[%emt 0:00:00]} Qf3 {[%emt 0:00:38]} 31. Rxd3 {[%emt 0:00:00]} Qh5 {[%emt 0:00:37]} 32. Bd6+ {[%emt 0:00:00]} Ka7 {[%emt 0:00:34]} 33. h3 {[%emt 0:00:00]} a5 {[%emt 0:00:18]} 34. Qc1 {[%emt 0:00:00]} Qe2 {[%emt 0:00:35]} 35. Rxa5+ {[%emt 0:00:00]} bxa5 {[%emt 0:00:24]} 36. Qc5+ {[%emt 0:00:00]} 1-0

[Event "48th Ciutat de Badalona Open 2024"]
[Site "Badalona"]
[Date "2024.08.02"]
[Round "1.6"]
[White "De Lomas Busquets, Alba"]
[Black "Chavez Suarez, Carlos Alberto"]
[Result "0-1"]
[ECO "B08"]
[WhiteElo "2023"]
[BlackElo "2279"]
[Annotator "ChessBase"]
[PlyCount "130"]
[EventDate "2024.07.29"]
[EventCountry "ESP"]
[SourceTitle "playchess.com"]
[Source "ChessBase"]
[SourceQuality "1"]
[TimeControl "5400+30"]

1. d4 {[%emt 1:31:00]} Nf6 {[%emt 0:05:49]} 2. Nf3 {[%emt 0:00:00]} g6 {[%emt 0:00:22]} 3. Nc3 {[%emt 0:00:00]} Bg7 {[%emt 0:01:05]} 4. e4 {[%emt 0:00:00]} d6 {[%emt 0:00:56]} 5. Be3 {[%emt 0:00:00]} c6 {[%emt 0:03:21]} 6. Qd2 {[%emt 0:00:00]} b5 {[%emt 0:03:08]} 7. Bd3 {[%emt 0:00:00]} Nbd7 {[%emt 0:03:56]} 8. h3 {[%emt 0:00:00]} O-O {[%emt 0:04:29]} 9. Bh6 {[%emt 0:00:00]} e5 {[%emt 0:04:04]} 10. Bxg7 {[%emt 0:00:00]} Kxg7 {[%emt 0:00:04]} 11. Ne2 {[%emt 0:00:00]} Re8 {[%emt 0:00:57]} 12. dxe5 {[%emt 0:00:00]} Nxe5 {[%emt 0:00:30]} 13. Nxe5 {[%emt 0:00:00]} Rxe5 {[%emt 0:02:19]} 14. O-O {[%emt 0:00:00]} Qb6 {[%emt 0:03:30]} 15. Ng3 {[%emt 0:00:00]} c5 {[%emt 0:13:49]} 16. c4 {[%emt 0:00:00]} bxc4 {[%emt 0:09:15]} 17. Bxc4 {[%emt 0:00:00]} Rb8 {[%emt 0:00:24]} 18. b3 {[%emt 0:00:00]} Nxe4 {[%emt 0:01:45]} 19. Nxe4 {[%emt 0:00:00]} Rxe4 {[%emt 0:00:14]} 20. Rad1 {[%emt 0:00:00]} Rd4 {[%emt 0:01:31]} 21. Qb2 {[%emt 0:00:00]} Be6 {[%emt 0:00:22]} 22. Rxd4 {[%emt 0:00:00]} cxd4 {[%emt 0:00:04]} 23. Qe2 {[%emt 0:00:00]} Qc5 {[%emt 0:04:59]} 24. Rd1 {[%emt 0:00:00]} Bxc4 {[%emt 0:02:20]} 25. Qxc4 {[%emt 0:00:00]} Rb4 {[%emt 0:00:30]} 26. Qd3 {[%emt 0:00:00]} Qb6 {[%emt 0:00:06]} 27. Rb1 {[%emt 0:00:00]} a5 {[%emt 0:00:44]} 28. a3 {[%emt 0:00:00]} Rb5 {[%emt 0:00:06]} 29. Kf1 {[%emt 0:00:00]} Kg8 {[%emt 0:01:30]} 30. Rd1 {[%emt 0:00:00]} Rxb3 {[%emt 0:01:11]} 31. Qxd4 {[%emt 0:00:00]} Rb1 {[%emt 0:03:52]} 32. Qxb6 {[%emt 0:00:00]} Rxb6 {[%emt 0:00:03]} 33. Rd5 {[%emt 0:00:00]} Ra6 {[%emt 0:00:04]} 34. Ke2 {[%emt 0:00:00]} Kf8 {[%emt 0:00:40]} 35. Kd3 {[%emt 0:00:00]} Ke7 {[%emt 0:00:05]} 36. Kd4 {[%emt 0:00:00]} a4 {[%emt 0:00:39]} 37. Rb5 {[%emt 0:00:26]} Rc6 {[%emt 0:00:37]} 38. Kd3 {[%emt 0:02:02]} Ra6 {[%emt 0:00:04]} 39. Kd4 {[%emt 0:00:03]} Ke6 {[%emt 0:00:04]} 40. g4 {[%emt 0:02:11]} Rc6 {[%emt 0:01:44]} 41. f4 {[%emt 0:01:00]} Rc2 {[%emt 0:00:29]} 42. f5+ {[%emt 0:01:27]} Kf6 {[%emt 0:01:51]} 43. Ra5 {[%emt 0:03:22]} Rh2 {[%emt 0:00:11]} 44. fxg6 {[%emt 0:00:54]} hxg6 {[%emt 0:00:05]} 45. g5+ {[%emt 0:00:44]} Ke6 {[%emt 0:00:06]} 46. Rxa4 {[%emt 0:00:25]} Rxh3 {[%emt 0:00:06]} 47. Ra5 {[%emt 0:00:38]} Rg3 {[%emt 0:01:02]} 48. Ke4 {[%emt 0:00:51]} Rg4+ {[%emt 0:00:27]} 49. Kf3 {[%emt 0:00:22]} Rc4 {[%emt 0:00:11]} 50. Ra8 {[%emt 0:00:50]} Kf5 {[%emt 0:00:10]} 51. Ra5+ {[%emt 0:00:55]} Ke6 {[%emt 0:00:05]} 52. Ra8 {[%emt 0:00:06]} d5 {[%emt 0:00:04]} 53. a4 {[%emt 0:01:22]} Kf5 {[%emt 0:00:13]} 54. Rd8 {[%emt 0:02:00]} Kxg5 {[%emt 0:00:41]} 55. Rxd5+ {[%emt 0:00:05]} f5 {[%emt 0:00:03]} 56. a5 {[%emt 0:01:22]} Rc3+ {[%emt 0:00:06]} 57. Kf2 {[%emt 0:00:13]} Ra3 {[%emt 0:00:05]} 58. Kg2 {[%emt 0:00:14]} Kg4 {[%emt 0:00:05]} 59. Rd6 {[%emt 0:00:42]} Ra2+ {[%emt 0:00:05]} 60. Kf1 {[%emt 0:00:20]} g5 {[%emt 0:00:05]} 61. Ra6 {[%emt 0:00:42]} f4 {[%emt 0:00:07]} 62. Ra8 {[%emt 0:00:13]} Kg3 {[%emt 0:00:05]} 63. a6 {[%emt 0:00:33]} f3 {[%emt 0:00:05]} 64. Re8 {[%emt 0:00:47]} Rxa6 {[%emt 0:00:15]} 65. Re1 {[%emt 0:00:05]} Rh6 {[%emt 0:00:11]} 0-1

[Event "48th Ciutat de Badalona Open 2024"]
[Site "Badalona"]
[Date "2024.08.02"]
[Round "1.7"]
[White "Nagare Kaivalya Sandip"]
[Black "Espanol Echevarria, Manel"]
[Result "1-0"]
[ECO "C78"]
[WhiteElo "2273"]
[BlackElo "2023"]
[Annotator "ChessBase"]
[PlyCount "25"]
[EventDate "2024.07.29"]
[EventCountry "ESP"]
[SourceTitle "playchess.com"]
[Source "ChessBase"]
[SourceQuality "1"]
[TimeControl "5400+30"]

1. e4 e5 2. Nf3 {[%emt 0:01:32]} Nc6 {[%emt 0:00:52]} 3. Bb5 {[%emt 0:00:00]} a6 {[%emt 0:00:18]} 4. Ba4 {[%emt 0:00:00]} Nf6 {[%emt 0:00:25]} 5. O-O {[%emt 1:31:28]} b5 6. Bb3 {[%emt 0:00:00]} Bc5 {[%emt 0:00:29]} 7. c3 {[%emt 0:00:00]} d6 {[%emt 0:00:17]} 8. d4 {[%emt 0:00:00]} Bb6 {[%emt 0:00:11]} 9. a4 {[%emt 0:00:00]} Rb8 {[%emt 0:00:30]} 10. a5 {[%emt 0:00:00]} Ba7 {[%emt 0:08:39]} 11. h3 {[%emt 0:00:00]} O-O {[%emt 0:01:13]} 12. Be3 {[%emt 0:00:00]} Nxe4 {[%emt 0:07:43]} 13. Bd5 {[%emt 0:00:00]} 1-0

[Event "48th Ciutat de Badalona Open 2024"]
[Site "Badalona"]
[Date "2024.08.02"]
[Round "1.8"]
[White "Martinez Talavera, Jordi"]
[Black "Blasco Coll, Andreu"]
[Result "0-1"]
[ECO "D02"]
[WhiteElo "2019"]
[BlackElo "2260"]
[Annotator "ChessBase"]
[PlyCount "70"]
[EventDate "2024.07.29"]
[EventCountry "ESP"]
[SourceTitle "playchess.com"]
[Source "ChessBase"]
[SourceQuality "1"]
[TimeControl "5400+30"]

1. d4 {[%emt 0:00:03]} Nf6 {[%emt 0:03:05]} 2. Bf4 {[%emt 0:00:14]} d5 {[%emt 0:00:18]} 3. e3 {[%emt 0:00:13]} c5 {[%emt 0:00:13]} 4. c3 {[%emt 0:00:09]} Nc6 {[%emt 0:00:14]} 5. Nf3 {[%emt 0:00:44]} e6 {[%emt 0:01:00]} 6. Nbd2 {[%emt 0:01:52]} cxd4 {[%emt 0:00:44]} 7. exd4 {[%emt 0:00:48]} Nh5 {[%emt 0:00:27]} 8. Be3 {[%emt 0:07:48]} Bd6 {[%emt 0:00:26]} 9. Ne5 {[%emt 0:00:16]} g6 {[%emt 0:00:25]} 10. Nxc6 {[%emt 0:13:44]} bxc6 {[%emt 0:00:21]} 11. c4 {[%emt 0:00:04]} O-O {[%emt 0:06:19]} 12. Be2 {[%emt 0:10:33]} Nf4 {[%emt 0:04:13]} 13. Bxf4 {[%emt 0:05:14]} Bxf4 {[%emt 0:00:06]} 14. O-O {[%emt 0:01:20]} Qb6 {[%emt 0:03:04]} 15. Nb3 {[%emt 0:01:00]} a5 {[%emt 0:00:27]} 16. Rb1 {[%emt 0:05:51]} Rd8 {[%emt 0:07:02]} 17. g3 {[%emt 0:01:38]} dxc4 {[%emt 0:04:27]} 18. Bxc4 {[%emt 0:03:04]} Bh6 {[%emt 0:04:13]} 19. Qg4 {[%emt 0:04:47]} Bg7 {[%emt 0:12:16]} 20. Rfd1 {[%emt 0:00:11]} a4 {[%emt 0:00:09]} 21. Nc5 {[%emt 0:00:42]} e5 {[%emt 0:03:33]} 22. Qg5 {[%emt 0:13:11]} Bf5 {[%emt 0:07:07]} 23. Rbc1 {[%emt 0:08:20]} exd4 {[%emt 0:12:33]} 24. g4 {[%emt 0:00:53]} Bc8 {[%emt 0:01:20]} 25. Qe7 {[%emt 0:01:48]} Ra7 {[%emt 0:02:01]} 26. Qe2 {[%emt 0:02:29]} Bf8 {[%emt 0:03:08]} 27. Ne4 {[%emt 0:05:28]} Bg7 {[%emt 0:02:59]} 28. b3 {[%emt 0:00:58]} Re7 {[%emt 0:01:49]} 29. Qf3 {[%emt 0:00:23]} Be6 {[%emt 0:03:46]} 30. bxa4 {[%emt 0:01:47]} Qb4 {[%emt 0:04:40]} 31. Bb3 {[%emt 0:00:57]} d3 {[%emt 0:03:03]} 32. Bxe6 {[%emt 0:06:48]} Rxe6 {[%emt 0:00:15]} 33. Ng5 {[%emt 0:00:43]} Rf6 {[%emt 0:01:13]} 34. Qe3 {[%emt 0:00:59]} d2 {[%emt 0:01:51]} 35. Rc2 {[%emt 0:00:36]} Qxg4+ {[%emt 0:00:10]} 0-1

[Event "48th Ciutat de Badalona Open 2024"]
[Site "Badalona"]
[Date "2024.08.02"]
[Round "1.9"]
[White "Perez Llinares, Luis"]
[Black "Cabrera Marmol, Manuel"]
[Result "1-0"]
[ECO "D00"]
[WhiteElo "1902"]
[BlackElo "1701"]
[Annotator "ChessBase"]
[PlyCount "83"]
[EventDate "2024.07.29"]
[EventCountry "ESP"]
[SourceTitle "playchess.com"]
[Source "ChessBase"]
[SourceQuality "1"]
[TimeControl "5400+30"]

1. d4 {[%emt 1:31:00]} d5 {[%emt 1:31:00]} 2. Bf4 {[%emt 0:00:30]} Bg4 {[%emt 0:00:30]} 3. h3 {[%emt 0:00:30]} Bh5 {[%emt 0:00:30]} 4. g4 {[%emt 0:00:30]} Bg6 {[%emt 0:00:30]} 5. Nc3 {[%emt 0:00:30]} e6 {[%emt 0:00:30]} 6. e3 {[%emt 0:00:30]} Bd6 {[%emt 0:00:30]} 7. Nge2 {[%emt 0:00:30]} Nf6 {[%emt 0:00:30]} 8. Bg2 {[%emt 0:00:30]} c6 {[%emt 0:00:30]} 9. Bxd6 {[%emt 0:00:30]} Qxd6 {[%emt 0:00:30]} 10. Nf4 {[%emt 0:00:30]} Na6 {[%emt 0:00:30]} 11. a3 {[%emt 0:00:30]} e5 {[%emt 0:00:30]} 12. Nxg6 {[%emt 0:00:30]} hxg6 {[%emt 0:00:30]} 13. Qe2 {[%emt 0:00:30]} O-O-O {[%emt 0:00:30]} 14. O-O-O {[%emt 0:00:30]} Rhe8 {[%emt 0:00:30]} 15. Qd2 {[%emt 0:00:30]} Kb8 {[%emt 0:00:30]} 16. Bf3 {[%emt 0:00:30]} g5 {[%emt 0:00:30]} 17. Be2 {[%emt 0:00:30]} Nc7 {[%emt 0:00:30]} 18. Na4 {[%emt 0:00:30]} Nd7 {[%emt 0:00:30]} 19. Qa5 {[%emt 0:00:30]} e4 {[%emt 0:00:30]} 20. c4 {[%emt 0:00:30]} dxc4 {[%emt 0:00:30]} 21. Qxg5 {[%emt 0:00:30]} Ne6 {[%emt 0:00:30]} 22. Qf5 {[%emt 0:00:30]} b5 {[%emt 0:00:30]} 23. Nc3 {[%emt 0:00:30]} Qe7 {[%emt 0:00:30]} 24. Qxe4 {[%emt 0:00:30]} Qd6 {[%emt 0:00:30]} 25. Qf5 {[%emt 0:00:30]} b4 {[%emt 0:00:30]} 26. axb4 {[%emt 0:00:30]} Qxb4 {[%emt 0:00:30]} 27. d5 {[%emt 0:00:30]} cxd5 {[%emt 0:00:30]} 28. Rxd5 {[%emt 0:00:30]} Ndc5 {[%emt 0:00:30]} 29. Rhd1 {[%emt 0:00:30]} Nb3+ {[%emt 0:00:30]} 30. Kc2 {[%emt 0:00:30]} Rxd5 {[%emt 0:00:30]} 31. Qxd5 {[%emt 0:00:30]} Rc8 {[%emt 0:00:30]} 32. Qb5+ {[%emt 0:00:30]} Qxb5 {[%emt 0:00:30]} 33. Nxb5 {[%emt 0:00:30]} a6 {[%emt 0:00:30]} 34. Nd6 {[%emt 0:00:30]} Rh8 {[%emt 0:00:30]} 35. Bxc4 {[%emt 0:00:30]} Na5 {[%emt 0:00:30]} 36. Bxa6 {[%emt 0:00:30]} Rxh3 {[%emt 0:00:30]} 37. Nxf7 {[%emt 0:00:30]} Rf3 {[%emt 0:00:30]} 38. Ne5 {[%emt 0:00:30]} Rxf2+ {[%emt 0:00:30]} 39. Rd2 {[%emt 0:00:30]} Rf1 {[%emt 0:00:30]} 40. b4 {[%emt 0:00:30]} Ra1 {[%emt 0:00:30]} 41. bxa5 {[%emt 0:00:30]} Rxa5 {[%emt 0:00:30]} 42. Nc6+ {[%emt 0:00:30]} 1-0